[Event "Live Chess"]
[Site "Chess.com"]
[Date "2024.06.01"]
[Round "-"]
[White "elephantgerrald"]
[Black "StoreySniper"]
[Result "0-1"]
[WhiteElo "753"]
[BlackElo "2552"]
[TimeControl "300"]
[EndTime "11:52:19 PDT"]
[Termination "StoreySniper won by checkmate"]

1. e4 {[%clk 0:04:59.1]} 1... g6 {[%clk 0:04:58.4]} 2. Nf3 {[%clk 0:04:57.2]}
2... Bg7 {[%clk 0:04:58.1]} 3. Nc3 {[%clk 0:04:55.9]} 3... c5 {[%clk 0:04:55.2]}
4. d4 {[%clk 0:04:55]} 4... Qa5 {[%clk 0:04:53.3]} 5. Bd2 {[%clk 0:04:51.4]}
5... cxd4 {[%clk 0:04:52]} 6. Nxd4 {[%clk 0:04:49.5]} 6... Bxd4 {[%clk
0:04:50.2]} 7. Bc4 {[%clk 0:04:48.4]} 7... Qc5 {[%clk 0:04:44]} 8. Qf3 {[%clk
0:04:46.7]} 8... Qxc4 {[%clk 0:04:40.2]} 9. O-O-O {[%clk 0:04:39.4]} 9... Nc6
{[%clk 0:04:31.3]} 10. b3 {[%clk 0:04:31.9]} 10... Qc5 {[%clk 0:04:28.1]} 11. e5
{[%clk 0:04:15.1]} 11... Nxe5 {[%clk 0:04:23.4]} 12. Qe4 {[%clk 0:04:10.2]}
12... Bxc3 {[%clk 0:04:18.2]} 13. Bxc3 {[%clk 0:04:00.5]} 13... Qxc3 {[%clk
0:04:17.3]} 14. Qh4 {[%clk 0:03:43.5]} 14... Nf6 {[%clk 0:04:06]} 15. f4 {[%clk
0:03:36.2]} 15... Ne4 {[%clk 0:04:00.7]} 16. Rhe1 {[%clk 0:03:12.9]} 16... Qa1#
{[%clk 0:03:58.6]} 0-1

[Event "Live Chess"]
[Site "Chess.com"]
[Date "2024.06.01"]
[Round "-"]
[White "Duke_of_Bebington"]
[Black "powerchs"]
[Result "1/2-1/2"]
[WhiteElo "1603"]
[BlackElo "1247"]
[TimeControl "300"]
[EndTime "11:52:26 PDT"]
[Termination "Game drawn - insufficient material"]

1. d4 {[%clk 0:04:58.1]} 1... Nf6 {[%clk 0:04:57.6]} 2. Bf4 {[%clk 0:04:51.8]}
2... d6 {[%clk 0:04:56.2]} 3. Nf3 {[%clk 0:04:42.9]} 3... g6 {[%clk 0:04:55]} 4.
c3 {[%clk 0:04:41.1]} 4... Nh5 {[%clk 0:04:53.3]} 5. Be3 {[%clk 0:04:33.9]} 5...
Bg7 {[%clk 0:04:51.5]} 6. g3 {[%clk 0:04:33]} 6... O-O {[%clk 0:04:49.8]} 7. Bg2
{[%clk 0:04:32.6]} 7... e5 {[%clk 0:04:48]} 8. dxe5 {[%clk 0:04:27.9]} 8... dxe5
{[%clk 0:04:47]} 9. O-O {[%clk 0:04:25]} 9... Qe7 {[%clk 0:04:39.8]} 10. Na3
{[%clk 0:04:17.7]} 10... Rd8 {[%clk 0:04:37]} 11. Qc2 {[%clk 0:04:15.5]} 11...
Bf5 {[%clk 0:04:33.9]} 12. Qb3 {[%clk 0:04:12.9]} 12... Nd7 {[%clk 0:04:21.6]}
13. Rad1 {[%clk 0:04:07.4]} 13... Be6 {[%clk 0:04:19.7]} 14. Qc2 {[%clk
0:03:47.6]} 14... Rab8 {[%clk 0:04:16.6]} 15. Bxa7 {[%clk 0:03:37.7]} 15... Ra8
{[%clk 0:04:00]} 16. Be3 {[%clk 0:03:33.7]} 16... c6 {[%clk 0:03:55.1]} 17. Nd2
{[%clk 0:03:23.8]} 17... Ndf6 {[%clk 0:03:52.9]} 18. Ne4 {[%clk 0:03:12.8]}
18... Nd5 {[%clk 0:03:47.1]} 19. Bc1 {[%clk 0:03:09]} 19... Nhf6 {[%clk
0:03:43.2]} 20. Qb1 {[%clk 0:02:57.4]} 20... Bf5 {[%clk 0:03:35.6]} 21. f3
{[%clk 0:02:53.9]} 21... Nh5 {[%clk 0:03:17.1]} 22. g4 {[%clk 0:02:46.5]} 22...
Bxe4 {[%clk 0:03:10]} 23. Qxe4 {[%clk 0:02:42.3]} 23... Nhf4 {[%clk 0:03:08.7]}
24. Bxf4 {[%clk 0:02:39.9]} 24... exf4 {[%clk 0:03:06.5]} 25. Qxe7 {[%clk
0:02:37.1]} 25... Nxe7 {[%clk 0:03:04.7]} 26. Nc4 {[%clk 0:02:34.9]} 26... Rxd1
{[%clk 0:03:00.9]} 27. Rxd1 {[%clk 0:02:33.4]} 27... Rxa2 {[%clk 0:02:59.8]} 28.
Rd8+ {[%clk 0:02:14.1]} 28... Bf8 {[%clk 0:02:57.8]} 29. Kf2 {[%clk 0:02:06.4]}
29... Kg7 {[%clk 0:02:54.2]} 30. Ne5 {[%clk 0:01:59.9]} 30... Nd5 {[%clk
0:02:52]} 31. Nd3 {[%clk 0:01:45.2]} 31... Ne3 {[%clk 0:02:45.8]} 32. Nxf4
{[%clk 0:01:39.4]} 32... Bc5 {[%clk 0:02:42.5]} 33. Kg3 {[%clk 0:01:29.6]} 33...
Rxb2 {[%clk 0:02:37.2]} 34. Nd3 {[%clk 0:01:28.2]} 34... Rb5 {[%clk 0:02:29.6]}
35. Nxc5 {[%clk 0:01:19.3]} 35... Rxc5 {[%clk 0:02:28]} 36. Rd3 {[%clk
0:01:18.4]} 36... Nd5 {[%clk 0:02:25.3]} 37. e4 {[%clk 0:01:11.7]} 37... Rxc3
{[%clk 0:02:19.6]} 38. Bf1 {[%clk 0:00:59.9]} 38... Rxd3 {[%clk 0:02:09.7]} 39.
Bxd3 {[%clk 0:00:59.8]} 39... Nb4 {[%clk 0:02:08.3]} 40. Bb1 {[%clk 0:00:58.7]}
40... b5 {[%clk 0:02:03.5]} 41. Kf2 {[%clk 0:00:58.2]} 41... c5 {[%clk
0:02:02.6]} 42. Ke3 {[%clk 0:00:57.7]} 42... c4 {[%clk 0:02:01.8]} 43. Kd4
{[%clk 0:00:55.2]} 43... Na6 {[%clk 0:01:56.5]} 44. Kc3 {[%clk 0:00:52.4]} 44...
Kf6 {[%clk 0:01:54.2]} 45. f4 {[%clk 0:00:50.5]} 45... Ke6 {[%clk 0:01:52.9]}
46. h4 {[%clk 0:00:43]} 46... f6 {[%clk 0:01:51.4]} 47. Kd4 {[%clk 0:00:42.1]}
47... Kd6 {[%clk 0:01:47.6]} 48. e5+ {[%clk 0:00:40.3]} 48... fxe5+ {[%clk
0:01:46.1]} 49. fxe5+ {[%clk 0:00:40.2]} 49... Ke6 {[%clk 0:01:44.9]} 50. Be4
{[%clk 0:00:36.8]} 50... Nc7 {[%clk 0:01:29.8]} 51. h5 {[%clk 0:00:28.3]} 51...
gxh5 {[%clk 0:01:26]} 52. gxh5 {[%clk 0:00:27.6]} 52... h6 {[%clk 0:01:24.6]}
53. Bg6 {[%clk 0:00:21.3]} 53... Ke7 {[%clk 0:01:08]} 54. Kc5 {[%clk 0:00:17.9]}
54... c3 {[%clk 0:01:02.1]} 55. Kb4 {[%clk 0:00:14.5]} 55... Ne6 {[%clk
0:00:42.7]} 56. Kxb5 {[%clk 0:00:13.1]} 56... Nf4 {[%clk 0:00:41.8]} 57. Bc2
{[%clk 0:00:11.7]} 57... Nxh5 {[%clk 0:00:40.3]} 58. Kc4 {[%clk 0:00:11.3]}
58... Nf4 {[%clk 0:00:39.2]} 59. Kxc3 {[%clk 0:00:11]} 59... h5 {[%clk
0:00:38.1]} 60. Kd4 {[%clk 0:00:10.1]} 60... h4 {[%clk 0:00:36.9]} 61. Bf5
{[%clk 0:00:09.5]} 61... h3 {[%clk 0:00:35.3]} 62. Bxh3 {[%clk 0:00:07.5]} 62...
Nxh3 {[%clk 0:00:33.7]} 63. Ke4 {[%clk 0:00:06.2]} 63... Ng5+ {[%clk 0:00:31.2]}
64. Kf5 {[%clk 0:00:04.7]} 64... Nf7 {[%clk 0:00:25.9]} 65. e6 {[%clk
0:00:03.6]} 65... Nd8 {[%clk 0:00:24.5]} 66. Ke5 {[%clk 0:00:02.4]} 66... Nxe6
{[%clk 0:00:23.4]} 1/2-1/2

[Event "Live Chess"]
[Site "Chess.com"]
[Date "2024.06.01"]
[Round "-"]
[White "mrsmarple1968"]
[Black "OliWally08"]
[Result "1-0"]
[WhiteElo "1787"]
[BlackElo "1273"]
[TimeControl "300"]
[EndTime "11:52:26 PDT"]
[Termination "mrsmarple1968 won on time"]

1. e4 {[%clk 0:04:54.9]} 1... d5 {[%clk 0:04:58.7]} 2. exd5 {[%clk 0:04:52]}
2... Nf6 {[%clk 0:04:57.3]} 3. Nc3 {[%clk 0:04:49.6]} 3... Nxd5 {[%clk
0:04:55.9]} 4. Nxd5 {[%clk 0:04:47.5]} 4... Qxd5 {[%clk 0:04:55.8]} 5. d3 {[%clk
0:04:45.4]} 5... Nc6 {[%clk 0:04:53.6]} 6. Nf3 {[%clk 0:04:43.1]} 6... Bg4
{[%clk 0:04:51.8]} 7. Be2 {[%clk 0:04:41.2]} 7... e6 {[%clk 0:04:48.7]} 8. O-O
{[%clk 0:04:35.8]} 8... h5 {[%clk 0:04:45.7]} 9. Bf4 {[%clk 0:04:30]} 9... g5
{[%clk 0:04:38.4]} 10. Bxc7 {[%clk 0:04:25.1]} 10... Rc8 {[%clk 0:04:15.9]} 11.
c4 {[%clk 0:04:06.1]} 11... Qf5 {[%clk 0:03:48.2]} 12. b4 {[%clk 0:03:37.1]}
12... Rxc7 {[%clk 0:03:36.9]} 13. b5 {[%clk 0:03:35.1]} 13... Ne5 {[%clk
0:03:24]} 14. Nxe5 {[%clk 0:03:19]} 14... Qxe5 {[%clk 0:03:21.7]} 15. Re1 {[%clk
0:03:05]} 15... Bd6 {[%clk 0:03:17.4]} 16. g3 {[%clk 0:03:01.8]} 16... Bxe2
{[%clk 0:02:24.2]} 17. Rxe2 {[%clk 0:02:53.6]} 17... Qd4 {[%clk 0:02:23.3]} 18.
Re4 {[%clk 0:02:46.3]} 18... Qg7 {[%clk 0:02:12.9]} 19. Rc1 {[%clk 0:02:36.1]}
19... Kd7 {[%clk 0:02:05.2]} 20. d4 {[%clk 0:02:26.4]} 20... h4 {[%clk
0:01:59.8]} 21. c5 {[%clk 0:02:19.5]} 21... Qh7 {[%clk 0:01:49.5]} 22. cxd6
{[%clk 0:02:08.4]} 22... Qxe4 {[%clk 0:01:18.8]} 23. dxc7 {[%clk 0:01:54]} 23...
h3 {[%clk 0:01:03]} 24. f3 {[%clk 0:01:43.2]} 24... Qe3+ {[%clk 0:00:56]} 25.
Kf1 {[%clk 0:01:37.1]} 25... Rc8 {[%clk 0:00:50.4]} 26. d5 {[%clk 0:01:25.3]}
26... Rxc7 {[%clk 0:00:42.3]} 27. dxe6+ {[%clk 0:01:21.5]} 27... Kc8 {[%clk
0:00:27.4]} 28. Rxc7+ {[%clk 0:01:14.5]} 28... Kxc7 {[%clk 0:00:24.6]} 29. Qd7+
{[%clk 0:01:11.7]} 29... Kb6 {[%clk 0:00:21.1]} 30. Qxf7 {[%clk 0:01:06.8]}
30... Qc1+ {[%clk 0:00:16.6]} 31. Ke2 {[%clk 0:01:04.9]} 31... Qc2+ {[%clk
0:00:13.6]} 32. Ke3 {[%clk 0:01:01.5]} 32... Qc1+ {[%clk 0:00:11.5]} 33. Ke2
{[%clk 0:00:58.9]} 33... Qc2+ {[%clk 0:00:10.7]} 34. Ke3 {[%clk 0:00:57.4]}
34... Qc1+ {[%clk 0:00:09.8]} 35. Ke4 {[%clk 0:00:55.1]} 35... Qc2+ {[%clk
0:00:07]} 36. Ke5 {[%clk 0:00:52.8]} 36... Qb2+ {[%clk 0:00:04.4]} 37. Kf5
{[%clk 0:00:50.7]} 37... Qxh2 {[%clk 0:00:03]} 38. e7 {[%clk 0:00:48.1]} 38...
Qc2+ {[%clk 0:00:01.2]} 39. Kxg5 {[%clk 0:00:46.2]} 39... h2 {[%clk 0:00:00.2]}
40. e8=Q {[%clk 0:00:41.7]} 1-0

[Event "Live Chess"]
[Site "Chess.com"]
[Date "2024.06.01"]
[Round "-"]
[White "uselessduffer"]
[Black "Pandreq"]
[Result "1-0"]
[WhiteElo "2436"]
[BlackElo "1130"]
[TimeControl "300"]
[EndTime "11:52:28 PDT"]
[Termination "uselessduffer won on time"]

1. e4 {[%clk 0:04:56]} 1... Nf6 {[%clk 0:04:57.3]} 2. e5 {[%clk 0:04:54.1]} 2...
Nd5 {[%clk 0:04:56.2]} 3. d4 {[%clk 0:04:52.6]} 3... d6 {[%clk 0:04:55.2]} 4.
Nf3 {[%clk 0:04:52.2]} 4... Nc6 {[%clk 0:04:53.4]} 5. c4 {[%clk 0:04:42.1]} 5...
Nb6 {[%clk 0:04:51.8]} 6. exd6 {[%clk 0:04:41.6]} 6... exd6 {[%clk 0:04:50.1]}
7. h3 {[%clk 0:04:31.2]} 7... Be7 {[%clk 0:04:36.9]} 8. Nc3 {[%clk 0:04:28.7]}
8... O-O {[%clk 0:04:30.9]} 9. Be2 {[%clk 0:04:26.1]} 9... Bf6 {[%clk
0:04:27.7]} 10. Be3 {[%clk 0:04:16.3]} 10... Bf5 {[%clk 0:04:21.2]} 11. O-O
{[%clk 0:04:07.1]} 11... Re8 {[%clk 0:04:11.5]} 12. Rc1 {[%clk 0:04:04.6]} 12...
Qd7 {[%clk 0:03:50.1]} 13. b3 {[%clk 0:03:48.3]} 13... a6 {[%clk 0:03:30.7]} 14.
d5 {[%clk 0:03:36.5]} 14... Ne5 {[%clk 0:03:27.6]} 15. Nd4 {[%clk 0:03:27.7]}
15... Bxh3 {[%clk 0:03:00.7]} 16. gxh3 {[%clk 0:03:15.9]} 16... Qxh3 {[%clk
0:03:00.6]} 17. Re1 {[%clk 0:03:10.2]} 17... Bh4 {[%clk 0:02:25.8]} 18. Bf1
{[%clk 0:02:47.6]} 18... Qg4+ {[%clk 0:02:17.3]} 19. Qxg4 {[%clk 0:02:41.5]}
19... Nxg4 {[%clk 0:02:17.2]} 20. Nf5 {[%clk 0:02:08.2]} 20... Nxe3 {[%clk
0:02:04.4]} 21. Nxh4 {[%clk 0:01:55.3]} 21... Ng4 {[%clk 0:01:55.2]} 22. Bh3
{[%clk 0:01:48.8]} 22... Nf6 {[%clk 0:01:49]} 23. Nf3 {[%clk 0:01:43.9]} 23...
Rxe1+ {[%clk 0:01:41.7]} 24. Rxe1 {[%clk 0:01:42.1]} 24... Re8 {[%clk
0:01:41.4]} 25. Rxe8+ {[%clk 0:01:37.6]} 25... Nxe8 {[%clk 0:01:40.5]} 26. Kf1
{[%clk 0:01:37.2]} 26... Nf6 {[%clk 0:01:34.6]} 27. Ke2 {[%clk 0:01:33.9]} 27...
Nbd7 {[%clk 0:01:33.3]} 28. Ke3 {[%clk 0:01:31.5]} 28... Nf8 {[%clk 0:01:27.6]}
29. b4 {[%clk 0:01:22.5]} 29... Ng6 {[%clk 0:01:25.9]} 30. Bf5 {[%clk
0:01:17.5]} 30... Ne5 {[%clk 0:01:14.3]} 31. Nxe5 {[%clk 0:01:14.5]} 31... dxe5
{[%clk 0:01:13.2]} 32. Bc8 {[%clk 0:01:13.9]} 32... b5 {[%clk 0:00:58]} 33. Bxa6
{[%clk 0:01:08.4]} 33... bxc4 {[%clk 0:00:56.9]} 34. Bxc4 {[%clk 0:01:08.3]}
34... Nd7 {[%clk 0:00:50.6]} 35. a4 {[%clk 0:01:06.7]} 35... Kf8 {[%clk
0:00:48.8]} 36. a5 {[%clk 0:01:04.6]} 36... Ke7 {[%clk 0:00:44.8]} 37. Na4
{[%clk 0:00:58.7]} 37... Kd8 {[%clk 0:00:39.5]} 38. a6 {[%clk 0:00:57]} 38...
Kc8 {[%clk 0:00:30.2]} 39. Nc5 {[%clk 0:00:46]} 39... Nb6 {[%clk 0:00:23.3]} 40.
Bb3 {[%clk 0:00:42.4]} 40... Kb8 {[%clk 0:00:19.2]} 41. Ke4 {[%clk 0:00:37]}
41... f6 {[%clk 0:00:17.9]} 42. Kf5 {[%clk 0:00:34.2]} 42... Ka7 {[%clk
0:00:10.4]} 43. Ke6 {[%clk 0:00:27.9]} 43... h5 {[%clk 0:00:09.1]} 44. Bd1
{[%clk 0:00:15.4]} 44... h4 {[%clk 0:00:07.3]} 45. Bg4 {[%clk 0:00:15.1]} 1-0

[Event "Live Chess"]
[Site "Chess.com"]
[Date "2024.06.01"]
[Round "-"]
[White "ACM42"]
[Black "koekoekoe"]
[Result "1-0"]
[WhiteElo "2215"]
[BlackElo "2073"]
[TimeControl "300"]
[EndTime "11:52:46 PDT"]
[Termination "ACM42 won by resignation"]

1. e4 {[%clk 0:04:57.3]} 1... d5 {[%clk 0:04:59.9]} 2. exd5 {[%clk 0:04:55.5]}
2... Qxd5 {[%clk 0:04:59.8]} 3. Nc3 {[%clk 0:04:54.3]} 3... Qa5 {[%clk
0:04:59.3]} 4. Nf3 {[%clk 0:04:52.9]} 4... Nf6 {[%clk 0:04:58.7]} 5. d4 {[%clk
0:04:51.2]} 5... Bg4 {[%clk 0:04:57.1]} 6. Be2 {[%clk 0:04:48.4]} 6... e6 {[%clk
0:04:56.2]} 7. h3 {[%clk 0:04:47.4]} 7... Bh5 {[%clk 0:04:55.1]} 8. g4 {[%clk
0:04:46.4]} 8... Bg6 {[%clk 0:04:54.2]} 9. Ne5 {[%clk 0:04:45.4]} 9... Bd6
{[%clk 0:04:47.7]} 10. Bf4 {[%clk 0:04:41.5]} 10... Nbd7 {[%clk 0:04:32.6]} 11.
Nc4 {[%clk 0:03:59.1]} 11... Qa6 {[%clk 0:03:21.9]} 12. Nxd6+ {[%clk 0:03:57]}
1-0

[Event "Live Chess"]
[Site "Chess.com"]
[Date "2024.06.01"]
[Round "-"]
[White "KwikPhoenix"]
[Black "Pedrada88"]
[Result "1-0"]
[WhiteElo "2443"]
[BlackElo "2535"]
[TimeControl "300"]
[EndTime "11:52:54 PDT"]
[Termination "KwikPhoenix won by checkmate"]

1. Nc3 {[%clk 0:04:57.7]} 1... d5 {[%clk 0:04:58.3]} 2. e4 {[%clk 0:04:56.7]}
2... d4 {[%clk 0:04:57.4]} 3. Nce2 {[%clk 0:04:55.7]} 3... c5 {[%clk 0:04:56.8]}
4. Ng3 {[%clk 0:04:53.7]} 4... Nc6 {[%clk 0:04:55.8]} 5. Nf3 {[%clk 0:04:53.4]}
5... h5 {[%clk 0:04:54.9]} 6. h4 {[%clk 0:04:52.1]} 6... e6 {[%clk 0:04:54.2]}
7. Bb5 {[%clk 0:04:51.3]} 7... Bd6 {[%clk 0:04:53.1]} 8. Ne2 {[%clk 0:04:49.2]}
8... Bd7 {[%clk 0:04:50]} 9. c3 {[%clk 0:04:48.6]} 9... Nf6 {[%clk 0:04:46.8]}
10. Bxc6 {[%clk 0:04:26.9]} 10... Bxc6 {[%clk 0:04:44.3]} 11. e5 {[%clk
0:04:26.6]} 11... Bxf3 {[%clk 0:04:43.4]} 12. exf6 {[%clk 0:04:26.5]} 12... Bxe2
{[%clk 0:04:42.3]} 13. fxg7 {[%clk 0:04:22.6]} 13... Rg8 {[%clk 0:04:39.5]} 14.
Qxe2 {[%clk 0:04:21.9]} 14... Rxg7 {[%clk 0:04:38.8]} 15. Qxh5 {[%clk
0:04:19.4]} 15... Rxg2 {[%clk 0:04:35.7]} 16. Qf3 {[%clk 0:04:16.3]} 16... Rg6
{[%clk 0:04:30]} 17. Qxb7 {[%clk 0:04:15.4]} 17... Rb8 {[%clk 0:04:22.6]} 18.
Qc6+ {[%clk 0:04:05.2]} 18... Kf8 {[%clk 0:04:15.8]} 19. h5 {[%clk 0:03:59.6]}
19... Rg5 {[%clk 0:04:06.2]} 20. h6 {[%clk 0:03:43.8]} 20... Rb6 {[%clk
0:04:01.5]} 21. Qf3 {[%clk 0:03:36]} 21... Re5+ {[%clk 0:03:51.5]} 22. Kd1
{[%clk 0:03:33.4]} 22... Rf5 {[%clk 0:03:50.5]} 23. Qg2 {[%clk 0:03:29.8]} 23...
Rg5 {[%clk 0:03:44.3]} 24. Qf3 {[%clk 0:03:25.7]} 24... Rf5 {[%clk 0:03:43]} 25.
Qg2 {[%clk 0:03:24.4]} 25... Rg5 {[%clk 0:03:42.1]} 26. Qe4 {[%clk 0:03:20.2]}
26... Re5 {[%clk 0:03:28.6]} 27. Qh7 {[%clk 0:03:14.6]} 27... Qf6 {[%clk
0:03:26.7]} 28. Qd3 {[%clk 0:02:54.2]} 28... c4 {[%clk 0:03:23.9]} 29. Qh3
{[%clk 0:02:39.7]} 29... d3 {[%clk 0:02:52.7]} 30. h7 {[%clk 0:02:27]} 30... Qh8
{[%clk 0:02:50.7]} 31. b3 {[%clk 0:02:25.4]} 31... Rg5 {[%clk 0:02:43.5]} 32.
bxc4 {[%clk 0:02:16.2]} 32... Be5 {[%clk 0:02:40.8]} 33. Qxd3 {[%clk 0:02:10.1]}
33... Rd6 {[%clk 0:02:39.5]} 34. Qe3 {[%clk 0:01:56]} 34... Rg7 {[%clk
0:02:29.9]} 35. Qxe5 {[%clk 0:01:48.5]} 35... Ke7 {[%clk 0:02:14.1]} 36. Qe4
{[%clk 0:01:22.4]} 36... f5 {[%clk 0:02:09.9]} 37. Qb7+ {[%clk 0:01:17.3]} 37...
Kf6 {[%clk 0:02:08.7]} 38. Qf3 {[%clk 0:01:09]} 38... Rxh7 {[%clk 0:02:05.6]}
39. Rxh7 {[%clk 0:01:07.8]} 39... Qxh7 {[%clk 0:02:05.5]} 40. c5 {[%clk
0:01:06.7]} 40... Rd5 {[%clk 0:02:00]} 41. c4 {[%clk 0:01:04.7]} 41... Rxc5
{[%clk 0:01:58.9]} 42. Bb2+ {[%clk 0:01:04.2]} 42... Kg6 {[%clk 0:01:54.5]} 43.
Qg3+ {[%clk 0:01:00.9]} 43... Kf7 {[%clk 0:01:52.8]} 44. d3 {[%clk 0:00:57.6]}
44... Qh5+ {[%clk 0:01:44.9]} 45. Kd2 {[%clk 0:00:57]} 45... Qh6+ {[%clk
0:01:42.6]} 46. Qe3 {[%clk 0:00:56.5]} 46... Qf8 {[%clk 0:01:33.4]} 47. Ba3
{[%clk 0:00:55]} 47... Qg7 {[%clk 0:01:32.3]} 48. Qxc5 {[%clk 0:00:52.5]} 48...
Qxa1 {[%clk 0:01:30.2]} 49. Qe7+ {[%clk 0:00:52.1]} 49... Kg6 {[%clk 0:01:28.6]}
50. Qxe6+ {[%clk 0:00:50.9]} 50... Kg5 {[%clk 0:01:28.1]} 51. Be7+ {[%clk
0:00:49.3]} 51... Kf4 {[%clk 0:01:26.1]} 52. Qe3+ {[%clk 0:00:47.8]} 52... Kg4
{[%clk 0:01:21.2]} 53. Qg3+ {[%clk 0:00:43.1]} 53... Kh5 {[%clk 0:01:20.5]} 54.
Qg5# {[%clk 0:00:39.7]} 1-0

[Event "Live Chess"]
[Site "Chess.com"]
[Date "2024.06.01"]
[Round "-"]
[White "Yegorych"]
[Black "Brooms1989"]
[Result "1-0"]
[WhiteElo "1627"]
[BlackElo "1094"]
[TimeControl "300"]
[EndTime "11:53:01 PDT"]
[Termination "Yegorych won by resignation"]

1. d4 {[%clk 0:04:51.4]} 1... Nf6 {[%clk 0:04:57.1]} 2. c4 {[%clk 0:04:49.6]}
2... g6 {[%clk 0:04:56.2]} 3. Nc3 {[%clk 0:04:47.8]} 3... Bg7 {[%clk 0:04:55.7]}
4. e4 {[%clk 0:04:46.7]} 4... d6 {[%clk 0:04:54.3]} 5. f3 {[%clk 0:04:45.5]}
5... a6 {[%clk 0:04:50.8]} 6. Be3 {[%clk 0:04:43.8]} 6... c6 {[%clk 0:04:48.4]}
7. g4 {[%clk 0:04:39.8]} 7... b5 {[%clk 0:04:46.5]} 8. e5 {[%clk 0:04:23.5]}
8... dxe5 {[%clk 0:04:42]} 9. dxe5 {[%clk 0:04:21.7]} 9... Qxd1+ {[%clk
0:04:40.7]} 10. Rxd1 {[%clk 0:04:20.6]} 10... Nfd7 {[%clk 0:04:38.3]} 11. f4
{[%clk 0:04:14.6]} 11... O-O {[%clk 0:04:23.2]} 12. Nf3 {[%clk 0:03:57]} 12...
a5 {[%clk 0:03:58]} 13. cxb5 {[%clk 0:03:49.8]} 13... cxb5 {[%clk 0:03:51.1]}
14. Bxb5 {[%clk 0:03:49.7]} 1-0

[Event "Live Chess"]
[Site "Chess.com"]
[Date "2024.06.01"]
[Round "-"]
[White "Dhaydon19"]
[Black "dhairyapandyauk"]
[Result "1-0"]
[WhiteElo "2692"]
[BlackElo "1628"]
[TimeControl "300"]
[EndTime "11:53:05 PDT"]
[Termination "Dhaydon19 won by resignation"]

1. d4 {[%clk 0:04:58.6]} 1... Nf6 {[%clk 0:04:57.7]} 2. Nf3 {[%clk 0:04:57.6]}
2... d5 {[%clk 0:04:55.8]} 3. g3 {[%clk 0:04:57.2]} 3... Bf5 {[%clk 0:04:55]} 4.
Bg2 {[%clk 0:04:56.7]} 4... g6 {[%clk 0:04:54.4]} 5. c3 {[%clk 0:04:56.3]} 5...
Bg7 {[%clk 0:04:53.7]} 6. O-O {[%clk 0:04:55.9]} 6... O-O {[%clk 0:04:52.4]} 7.
Re1 {[%clk 0:04:55.6]} 7... Nbd7 {[%clk 0:04:51.3]} 8. Nbd2 {[%clk 0:04:55]}
8... c6 {[%clk 0:04:50.6]} 9. Nh4 {[%clk 0:04:54.3]} 9... e6 {[%clk 0:04:47.6]}
10. Nxf5 {[%clk 0:04:53.5]} 10... exf5 {[%clk 0:04:47]} 11. Qb3 {[%clk 0:04:53]}
11... Qc7 {[%clk 0:04:45.5]} 12. Nf3 {[%clk 0:04:52.3]} 12... Ne4 {[%clk
0:04:44.2]} 13. Bf4 {[%clk 0:04:51.7]} 13... Qb6 {[%clk 0:04:42.1]} 14. Qc2
{[%clk 0:04:50.6]} 14... Rfe8 {[%clk 0:04:36.5]} 15. Rad1 {[%clk 0:04:48]} 15...
a5 {[%clk 0:04:35.5]} 16. Nd2 {[%clk 0:04:46.5]} 16... a4 {[%clk 0:04:30]} 17.
Nxe4 {[%clk 0:04:44.6]} 17... fxe4 {[%clk 0:04:28.3]} 18. f3 {[%clk 0:04:44.2]}
18... f5 {[%clk 0:04:26.8]} 19. fxe4 {[%clk 0:04:42.2]} 19... fxe4 {[%clk
0:04:22.7]} 20. e3 {[%clk 0:04:37.1]} 20... Qa6 {[%clk 0:04:15.3]} 21. Bf1
{[%clk 0:04:35.5]} 21... b5 {[%clk 0:04:14]} 22. Rd2 {[%clk 0:04:31.7]} 22...
Qb6 {[%clk 0:04:10.8]} 23. b3 {[%clk 0:04:30.7]} 23... axb3 {[%clk 0:04:09.3]}
24. axb3 {[%clk 0:04:30.3]} 24... Ra3 {[%clk 0:04:07.8]} 25. c4 {[%clk
0:04:27.4]} 25... bxc4 {[%clk 0:04:05.5]} 26. bxc4 {[%clk 0:04:27.1]} 26... Rea8
{[%clk 0:04:01]} 27. Rb1 {[%clk 0:04:24]} 27... Qa5 {[%clk 0:03:57.3]} 28. cxd5
{[%clk 0:04:22]} 28... Ra2 {[%clk 0:03:51.7]} 29. Rb2 {[%clk 0:04:18.5]} 29...
Rxb2 {[%clk 0:03:50.5]} 30. Qxb2 {[%clk 0:04:18.2]} 30... cxd5 {[%clk
0:03:49.9]} 31. Qb7 {[%clk 0:04:13.5]} 31... Qxd2 {[%clk 0:03:46.2]} 32. Qxa8+
{[%clk 0:04:12.1]} 32... Nf8 {[%clk 0:03:44.9]} 33. Qxd5+ {[%clk 0:04:11.4]}
33... Kh8 {[%clk 0:03:43.8]} 34. Qxe4 {[%clk 0:04:10.6]} 34... h6 {[%clk
0:03:39.7]} 35. h4 {[%clk 0:04:06.4]} 35... Qe1 {[%clk 0:03:36.2]} 36. d5 {[%clk
0:04:02.2]} 36... g5 {[%clk 0:03:33.2]} 37. hxg5 {[%clk 0:04:00.9]} 37... hxg5
{[%clk 0:03:32.7]} 38. Bxg5 {[%clk 0:04:00.6]} 38... Qxg3+ {[%clk 0:03:31.7]}
39. Qg2 {[%clk 0:03:58.8]} 39... Qe5 {[%clk 0:03:27.7]} 40. Bf4 {[%clk
0:03:57.8]} 40... Qf5 {[%clk 0:03:25.7]} 41. d6 {[%clk 0:03:54.1]} 41... Qc5
{[%clk 0:03:21]} 42. d7 {[%clk 0:03:49.6]} 42... Nxd7 {[%clk 0:03:19.9]} 43.
Qh3+ {[%clk 0:03:48.3]} 43... Kg8 {[%clk 0:03:14.1]} 44. Qe6+ {[%clk 0:03:47.6]}
1-0